[Event "Early-Titled-Tuesday-Blitz-September-26-2023"]
[Site "Chess.com"]
[Date "2023.09.26"]
[Round "1"]
[White "spotbet"]
[Black "TregubovP"]
[Result "1/2-1/2"]
[WhiteElo "2369"]
[BlackElo "2649"]
[TimeControl "180+1"]
[EndTime "8:08:16 PDT"]
[Termination "Game drawn - insufficient material"]

1. d4 {[%clk 0:03:00.9]} 1... Nf6 {[%clk 0:02:59.1]} 2. Bf4 {[%clk 0:03:00.2]}
2... d5 {[%clk 0:02:55.8]} 3. Nf3 {[%clk 0:02:59.5]} 3... c5 {[%clk 0:02:55.9]}
4. e3 {[%clk 0:02:58.9]} 4... Nc6 {[%clk 0:02:56.4]} 5. c3 {[%clk 0:02:58.9]}
5... Qb6 {[%clk 0:02:50.5]} 6. Qb3 {[%clk 0:02:55.2]} 6... c4 {[%clk 0:02:48.3]}
7. Qxb6 {[%clk 0:02:52.6]} 7... axb6 {[%clk 0:02:48]} 8. Ne5 {[%clk 0:02:49.2]}
8... b5 {[%clk 0:02:44.1]} 9. a3 {[%clk 0:02:48.5]} 9... e6 {[%clk 0:02:35.5]}
10. Be2 {[%clk 0:02:43.9]} 10... b4 {[%clk 0:02:35.7]} 11. Nxc6 {[%clk
0:02:43.6]} 11... bxc6 {[%clk 0:02:35.1]} 12. O-O {[%clk 0:02:36.3]} 12... bxa3
{[%clk 0:02:04.8]} 13. Nxa3 {[%clk 0:02:36.2]} 13... Be7 {[%clk 0:01:59.7]} 14.
Nc2 {[%clk 0:02:33.1]} 14... Rxa1 {[%clk 0:01:53.5]} 15. Rxa1 {[%clk 0:02:34]}
15... O-O {[%clk 0:01:53.1]} 16. f3 {[%clk 0:02:22.2]} 16... Ne8 {[%clk
0:01:33.9]} 17. Ra7 {[%clk 0:02:14.9]} 17... Bd6 {[%clk 0:01:33.6]} 18. Bxd6
{[%clk 0:02:06.9]} 18... Nxd6 {[%clk 0:01:33.7]} 19. Nb4 {[%clk 0:02:07.5]}
19... Nb5 {[%clk 0:01:30.2]} 20. Re7 {[%clk 0:02:00.9]} 20... g6 {[%clk
0:01:15.9]} 21. Nxc6 {[%clk 0:02:00.8]} 21... Kg7 {[%clk 0:01:16.5]} 22. Ne5
{[%clk 0:01:53.3]} 22... Nd6 {[%clk 0:01:09.1]} 23. Ra7 {[%clk 0:01:49.2]} 23...
Rd8 {[%clk 0:01:06.3]} 24. Kf2 {[%clk 0:01:47]} 24... Kf8 {[%clk 0:01:06]} 25.
Bd1 {[%clk 0:01:44.1]} 25... Bb7 {[%clk 0:00:56.1]} 26. Ba4 {[%clk 0:01:36.1]}
26... Ra8 {[%clk 0:00:55.8]} 27. Rxa8+ {[%clk 0:01:30.7]} 27... Bxa8 {[%clk
0:00:56.7]} 28. Nd7+ {[%clk 0:01:27.2]} 28... Ke7 {[%clk 0:00:55]} 29. Nc5
{[%clk 0:01:28.1]} 29... Bb7 {[%clk 0:00:48.9]} 30. b3 {[%clk 0:01:23.4]} 30...
cxb3 {[%clk 0:00:48.4]} 31. Bxb3 {[%clk 0:01:23.6]} 31... Bc6 {[%clk 0:00:48.4]}
32. g4 {[%clk 0:01:18.5]} 32... g5 {[%clk 0:00:47.4]} 33. Ke1 {[%clk 0:01:17.2]}
33... Bb5 {[%clk 0:00:47.2]} 34. Kd2 {[%clk 0:01:16.9]} 34... h6 {[%clk
0:00:44.8]} 35. Nd3 {[%clk 0:01:12.4]} 35... f6 {[%clk 0:00:43.1]} 36. Nb2
{[%clk 0:01:10.4]} 36... Bf1 {[%clk 0:00:37.7]} 37. Bc2 {[%clk 0:01:05.7]} 37...
e5 {[%clk 0:00:32.9]} 38. Bd3 {[%clk 0:01:06]} 38... Bxd3 {[%clk 0:00:32.3]} 39.
Kxd3 {[%clk 0:01:06.5]} 39... Ke6 {[%clk 0:00:31.7]} 40. Na4 {[%clk 0:01:05.6]}
40... e4+ {[%clk 0:00:28.1]} 41. Ke2 {[%clk 0:01:01.7]} 41... f5 {[%clk
0:00:27]} 42. Nc5+ {[%clk 0:01:00.9]} 42... Kf6 {[%clk 0:00:27.2]} 43. h3 {[%clk
0:01:00.6]} 43... Nc4 {[%clk 0:00:21.9]} 44. fxe4 {[%clk 0:00:55.3]} 44... fxe4
{[%clk 0:00:20.3]} 45. Nd7+ {[%clk 0:00:52.6]} 45... Ke6 {[%clk 0:00:19.8]} 46.
Nc5+ {[%clk 0:00:53.5]} 46... Kf6 {[%clk 0:00:19.8]} 47. Nb3 {[%clk 0:00:53.8]}
47... Ke6 {[%clk 0:00:19]} 48. Nd2 {[%clk 0:00:54.4]} 48... Nd6 {[%clk
0:00:18.6]} 49. Nf1 {[%clk 0:00:54.7]} 49... Kf6 {[%clk 0:00:18.2]} 50. Ng3
{[%clk 0:00:55.1]} 50... Kg6 {[%clk 0:00:18.1]} 51. Kd2 {[%clk 0:00:55.5]} 51...
Kf6 {[%clk 0:00:18.5]} 52. Kc2 {[%clk 0:00:56.1]} 52... Kg6 {[%clk 0:00:18.2]}
53. Kb3 {[%clk 0:00:55.8]} 53... Kf6 {[%clk 0:00:18.6]} 54. Kb4 {[%clk
0:00:55.7]} 54... Ke6 {[%clk 0:00:19.3]} 55. Kc5 {[%clk 0:00:55.7]} 55... Nc4
{[%clk 0:00:18.6]} 56. Nf5 {[%clk 0:00:55.5]} 56... h5 {[%clk 0:00:17.1]} 57.
Ng7+ {[%clk 0:00:49.1]} 57... Kf7 {[%clk 0:00:17]} 58. Nxh5 {[%clk 0:00:49.5]}
58... Nxe3 {[%clk 0:00:17.3]} 59. Ng3 {[%clk 0:00:49.4]} 59... Ke6 {[%clk
0:00:16.1]} 60. Ne2 {[%clk 0:00:43.9]} 60... Ng2 {[%clk 0:00:14]} 61. c4 {[%clk
0:00:41.8]} 61... dxc4 {[%clk 0:00:13.9]} 62. Kxc4 {[%clk 0:00:42.2]} 62... Nf4
{[%clk 0:00:14.3]} 63. d5+ {[%clk 0:00:40.9]} 63... Nxd5 {[%clk 0:00:13.6]} 64.
Kd4 {[%clk 0:00:40.5]} 64... Nf6 {[%clk 0:00:10.8]} 65. Ng3 {[%clk 0:00:40.9]}
65... Kf7 {[%clk 0:00:09.3]} 66. Nxe4 {[%clk 0:00:40.9]} 66... Nh7 {[%clk
0:00:10]} 67. Ke5 {[%clk 0:00:41]} 67... Kg6 {[%clk 0:00:10.3]} 68. Ke6 {[%clk
0:00:41.4]} 68... Nf8+ {[%clk 0:00:10.7]} 69. Ke7 {[%clk 0:00:41.8]} 69... Nh7
{[%clk 0:00:10.9]} 70. Nd6 {[%clk 0:00:41.5]} 70... Nf6 {[%clk 0:00:10.8]} 71.
Nf5 {[%clk 0:00:41.8]} 71... Ne4 {[%clk 0:00:10.6]} 72. Ke6 {[%clk 0:00:39.6]}
72... Nf2 {[%clk 0:00:10.7]} 73. Ne7+ {[%clk 0:00:40]} 73... Kh6 {[%clk
0:00:09.1]} 74. Kf6 {[%clk 0:00:38.4]} 74... Nxh3 {[%clk 0:00:08.8]} 75. Ng8+
{[%clk 0:00:39]} 75... Kh7 {[%clk 0:00:08.9]} 76. Ne7 {[%clk 0:00:39.9]} 76...
Kh6 {[%clk 0:00:09.2]} 77. Nf5+ {[%clk 0:00:40.5]} 77... Kh7 {[%clk 0:00:09]}
78. Ne7 {[%clk 0:00:37.2]} 78... Nf2 {[%clk 0:00:09]} 79. Kxg5 {[%clk
0:00:37.7]} 79... Nxg4 {[%clk 0:00:09.6]} 1/2-1/2

[Event "Early-Titled-Tuesday-Blitz-September-26-2023"]
[Site "Chess.com"]
[Date "2023.09.26"]
[Round "1"]
[White "rezamahdavi2008"]
[Black "PavelChernomordik"]
[Result "1-0"]
[WhiteElo "2867"]
[BlackElo "2496"]
[TimeControl "180+1"]
[EndTime "8:08:17 PDT"]
[Termination "rezamahdavi2008 won by resignation"]

1. Nf3 {[%clk 0:03:00.9]} 1... g6 {[%clk 0:02:58.9]} 2. g3 {[%clk 0:03:00.2]}
2... Bg7 {[%clk 0:02:59]} 3. Bg2 {[%clk 0:03:00.9]} 3... e5 {[%clk 0:02:59]} 4.
d3 {[%clk 0:03:00.2]} 4... Nc6 {[%clk 0:02:59]} 5. c4 {[%clk 0:03:00]} 5... d6
{[%clk 0:02:59]} 6. Nc3 {[%clk 0:03:00.6]} 6... h6 {[%clk 0:02:59]} 7. Rb1
{[%clk 0:03:00.7]} 7... Be6 {[%clk 0:02:59]} 8. O-O {[%clk 0:03:01.1]} 8... Qd7
{[%clk 0:02:59.2]} 9. Nd2 {[%clk 0:03:01.6]} 9... Nge7 {[%clk 0:02:57.8]} 10. b4
{[%clk 0:03:02]} 10... Bh3 {[%clk 0:02:56.3]} 11. b5 {[%clk 0:03:02.2]} 11...
Nd8 {[%clk 0:02:56.1]} 12. Bh1 {[%clk 0:02:56.7]} 12... Bxf1 {[%clk 0:02:55.1]}
13. Qxf1 {[%clk 0:02:57.6]} 13... f5 {[%clk 0:02:47]} 14. a4 {[%clk 0:02:57.9]}
14... O-O {[%clk 0:02:46.1]} 15. a5 {[%clk 0:02:57.7]} 15... a6 {[%clk
0:02:39.9]} 16. bxa6 {[%clk 0:02:55.5]} 16... Rxa6 {[%clk 0:02:39.5]} 17. Nb3
{[%clk 0:02:51.1]} 17... c6 {[%clk 0:02:30]} 18. Be3 {[%clk 0:02:49.5]} 18...
Ne6 {[%clk 0:02:29.3]} 19. Bb6 {[%clk 0:02:49.5]} 19... e4 {[%clk 0:02:21.4]}
20. Na4 {[%clk 0:02:46.9]} 20... exd3 {[%clk 0:02:17.8]} 21. exd3 {[%clk
0:02:47.8]} 21... f4 {[%clk 0:02:17.9]} 22. Re1 {[%clk 0:02:47.4]} 22... Ng5
{[%clk 0:02:10.4]} 23. h4 {[%clk 0:02:29.8]} 23... fxg3 {[%clk 0:02:05.9]} 24.
hxg5 {[%clk 0:02:26.8]} 24... gxf2+ {[%clk 0:02:05.4]} 25. Bxf2 {[%clk
0:02:26.3]} 25... Rf4 {[%clk 0:01:27.1]} 26. Nb6 {[%clk 0:02:20]} 26... Qg4+
{[%clk 0:01:22.2]} 27. Qg2 {[%clk 0:01:57.1]} 27... Nf5 {[%clk 0:01:16.8]} 28.
Qxg4 {[%clk 0:01:51.7]} 28... Rxg4+ {[%clk 0:01:16.4]} 29. Kf1 {[%clk
0:01:52.6]} 29... Bc3 {[%clk 0:01:06.7]} 30. Re8+ {[%clk 0:01:51.3]} 30... Kf7
{[%clk 0:01:06.4]} 31. Rb8 {[%clk 0:01:52.2]} 31... Bxa5 {[%clk 0:01:00.9]} 32.
Rxb7+ {[%clk 0:01:50.6]} 32... Ke6 {[%clk 0:01:00.8]} 33. Nxa5 {[%clk
0:01:29.3]} 33... Rxa5 {[%clk 0:00:57.5]} 34. Bxc6 {[%clk 0:01:29.6]} 34... Ra1+
{[%clk 0:00:47.1]} 35. Ke2 {[%clk 0:01:28.3]} 35... Rxg5 {[%clk 0:00:36.5]} 36.
Bd5+ {[%clk 0:01:22.9]} 36... Ke5 {[%clk 0:00:36.3]} 37. Nd7+ {[%clk 0:01:13.3]}
37... Kf4 {[%clk 0:00:35.8]} 38. Rb2 {[%clk 0:01:07.2]} 38... Ng3+ {[%clk
0:00:30.1]} 39. Kd2 {[%clk 0:01:02.2]} 39... Nf1+ {[%clk 0:00:26.6]} 40. Kc3
{[%clk 0:00:55.2]} 40... Ne3 {[%clk 0:00:26.2]} 41. Bxe3+ {[%clk 0:00:36.4]}
41... Kxe3 {[%clk 0:00:25.8]} 42. Be4 {[%clk 0:00:28.4]} 42... Rgg1 {[%clk
0:00:19.2]} 43. Nf6 {[%clk 0:00:23.7]} 43... Rgc1+ {[%clk 0:00:16.5]} 44. Kb3
{[%clk 0:00:21.2]} 44... Kd4 {[%clk 0:00:16.9]} 45. Ne8 {[%clk 0:00:17.4]} 45...
Rc3+ {[%clk 0:00:16.7]} 46. Kb4 {[%clk 0:00:16.5]} 46... Ra6 {[%clk 0:00:17]}
47. Nc7 {[%clk 0:00:14.9]} 47... Rca3 {[%clk 0:00:15.3]} 48. Nb5+ {[%clk
0:00:14.1]} 48... Ke5 {[%clk 0:00:14.7]} 49. Nxa3 {[%clk 0:00:14.7]} 49... Rb6+
{[%clk 0:00:12.3]} 50. Nb5 {[%clk 0:00:14.2]} 50... h5 {[%clk 0:00:11.2]} 51.
Bxg6 {[%clk 0:00:09.4]} 51... h4 {[%clk 0:00:11]} 52. Re2+ {[%clk 0:00:06.4]}
52... Kf4 {[%clk 0:00:10.7]} 53. Re4+ {[%clk 0:00:07]} 53... Kg5 {[%clk
0:00:10.5]} 54. Be8 {[%clk 0:00:07.3]} 1-0

[Event "Early-Titled-Tuesday-Blitz-September-26-2023"]
[Site "Chess.com"]
[Date "2023.09.26"]
[Round "1"]
[White "Darko-Dimitrijevic"]
[Black "vishwa_vijeta"]
[Result "0-1"]
[WhiteElo "1986"]
[BlackElo "2535"]
[TimeControl "180+1"]
[EndTime "8:08:23 PDT"]
[Termination "vishwa_vijeta won on time"]

1. d4 {[%clk 0:02:54]} 1... Nf6 {[%clk 0:02:57.3]} 2. c4 {[%clk 0:02:53.4]} 2...
g6 {[%clk 0:02:57.3]} 3. Nc3 {[%clk 0:02:52.9]} 3... d5 {[%clk 0:02:57.6]} 4. e3
{[%clk 0:02:52.8]} 4... Bg7 {[%clk 0:02:57.5]} 5. Nf3 {[%clk 0:02:52.8]} 5...
O-O {[%clk 0:02:56.9]} 6. Be2 {[%clk 0:02:52.3]} 6... c5 {[%clk 0:02:56.3]} 7.
O-O {[%clk 0:02:50.9]} 7... cxd4 {[%clk 0:02:56.3]} 8. Nxd4 {[%clk 0:02:50.5]}
8... Nc6 {[%clk 0:02:56]} 9. Nxc6 {[%clk 0:02:45.8]} 9... bxc6 {[%clk
0:02:55.8]} 10. Bd2 {[%clk 0:02:44.6]} 10... Rb8 {[%clk 0:02:54.9]} 11. b3
{[%clk 0:02:40.4]} 11... Ne4 {[%clk 0:02:54.5]} 12. Rc1 {[%clk 0:02:39.5]} 12...
Nxd2 {[%clk 0:02:54.1]} 13. Qxd2 {[%clk 0:02:39.3]} 13... e6 {[%clk 0:02:46.7]}
14. Rfd1 {[%clk 0:02:37.9]} 14... Bd7 {[%clk 0:02:46.8]} 15. h3 {[%clk
0:02:36.7]} 15... Qa5 {[%clk 0:02:46.7]} 16. Nxd5 {[%clk 0:02:29.1]} 16... Qa3
{[%clk 0:02:43.3]} 17. Ne7+ {[%clk 0:02:23.7]} 17... Qxe7 {[%clk 0:02:39.5]} 18.
Qxd7 {[%clk 0:02:23.2]} 18... Qa3 {[%clk 0:02:40]} 19. Qd2 {[%clk 0:02:18.3]}
19... Rfd8 {[%clk 0:02:38.5]} 20. Qc2 {[%clk 0:02:14.9]} 20... Bf6 {[%clk
0:02:37]} 21. Bf3 {[%clk 0:02:12.1]} 21... c5 {[%clk 0:02:34.6]} 22. Rb1 {[%clk
0:02:00.6]} 22... Kg7 {[%clk 0:02:33.9]} 23. Kf1 {[%clk 0:01:59.6]} 23... Rxd1+
{[%clk 0:02:31.9]} 24. Rxd1 {[%clk 0:01:58.7]} 24... a5 {[%clk 0:02:32.4]} 25.
Bc6 {[%clk 0:01:54.6]} 25... Qb4 {[%clk 0:02:28.2]} 26. Bb5 {[%clk 0:01:53.8]}
26... h5 {[%clk 0:02:14.2]} 27. g3 {[%clk 0:01:51.1]} 27... Rd8 {[%clk
0:02:12.3]} 28. Rxd8 {[%clk 0:01:50]} 28... Bxd8 {[%clk 0:02:13.2]} 29. Ke2
{[%clk 0:01:49.8]} 29... Bf6 {[%clk 0:02:13.6]} 30. g4 {[%clk 0:01:49.5]} 30...
hxg4 {[%clk 0:02:11.9]} 31. hxg4 {[%clk 0:01:49.2]} 31... Qa3 {[%clk 0:02:11.7]}
32. f4 {[%clk 0:01:48.5]} 32... g5 {[%clk 0:02:10]} 33. Kf3 {[%clk 0:01:43.8]}
33... Qb4 {[%clk 0:02:06.1]} 34. Kf2 {[%clk 0:01:42]} 34... gxf4 {[%clk
0:02:05.1]} 35. exf4 {[%clk 0:01:41.3]} 35... Bd4+ {[%clk 0:02:05.3]} 36. Ke2
{[%clk 0:01:38.9]} 36... Qa3 {[%clk 0:02:03.5]} 37. g5 {[%clk 0:01:37.9]} 37...
Qb4 {[%clk 0:02:03.5]} 38. Qd3 {[%clk 0:01:28.9]} 38... Qa3 {[%clk 0:02:01.7]}
39. Qc2 {[%clk 0:01:29]} 39... Bb2 {[%clk 0:02:00.1]} 40. Qb1 {[%clk 0:01:26.9]}
40... Bd4 {[%clk 0:01:57.2]} 41. Bc6 {[%clk 0:01:25.9]} 41... Qb4 {[%clk
0:01:56.3]} 42. Qc2 {[%clk 0:01:25.9]} 42... Qb8 {[%clk 0:01:55.8]} 43. Kf3
{[%clk 0:01:24.6]} 43... Qh8 {[%clk 0:01:55.4]} 44. Qg2 {[%clk 0:01:22.2]} 44...
Qh5+ {[%clk 0:01:54.2]} 45. Ke4 {[%clk 0:01:11.5]} 45... Qg6+ {[%clk 0:01:37]}
46. Kf3 {[%clk 0:01:10]} 46... Qd3+ {[%clk 0:01:37.9]} 47. Kg4 {[%clk
0:01:08.8]} 47... Qf5+ {[%clk 0:01:38]} 48. Kf3 {[%clk 0:01:09]} 48... e5 {[%clk
0:01:33.7]} 49. Qg3 {[%clk 0:01:00.9]} 49... Qd3+ {[%clk 0:01:32.3]} 50. Kg4
{[%clk 0:01:01]} 50... Qe2+ {[%clk 0:01:24]} 51. Kf5 {[%clk 0:00:59.1]} 51...
exf4 {[%clk 0:01:16.5]} 52. Qf3 {[%clk 0:00:47.6]} 52... Qe5+ {[%clk 0:00:40.7]}
53. Kg4 {[%clk 0:00:45.9]} 53... Be3 {[%clk 0:00:41.6]} 54. Qe4 {[%clk
0:00:41.3]} 54... Qa1 {[%clk 0:00:40.6]} 55. Be8 {[%clk 0:00:37]} 55... Qd1+
{[%clk 0:00:34.7]} 56. Kf5 {[%clk 0:00:35.2]} 56... Qd6 {[%clk 0:00:33.5]} 57.
Kg4 {[%clk 0:00:26.5]} 57... Kf8 {[%clk 0:00:30.7]} 58. g6 {[%clk 0:00:22.3]}
58... Qd1+ {[%clk 0:00:17.6]} 59. Kh4 {[%clk 0:00:17.4]} 59... Bf2+ {[%clk
0:00:13]} 60. Kg5 {[%clk 0:00:06.7]} 60... Qg1+ {[%clk 0:00:11.7]} 0-1

[Event "Early-Titled-Tuesday-Blitz-September-26-2023"]
[Site "Chess.com"]
[Date "2023.09.26"]
[Round "1"]
[White "Bilan_Danila"]
[Black "Alenzer"]
[Result "1-0"]
[WhiteElo "2547"]
[BlackElo "2091"]
[TimeControl "180+1"]
[EndTime "8:08:33 PDT"]
[Termination "Bilan_Danila won by checkmate"]

1. d4 {[%clk 0:02:55.4]} 1... d5 {[%clk 0:02:58]} 2. Nf3 {[%clk 0:02:55.3]} 2...
e6 {[%clk 0:02:57.4]} 3. c4 {[%clk 0:02:54.8]} 3... c5 {[%clk 0:02:53.2]} 4. Nc3
{[%clk 0:02:53]} 4... Nf6 {[%clk 0:02:52.5]} 5. cxd5 {[%clk 0:02:47.6]} 5...
exd5 {[%clk 0:02:53.4]} 6. g3 {[%clk 0:02:40.4]} 6... Nc6 {[%clk 0:02:51.5]} 7.
Bg2 {[%clk 0:02:39.9]} 7... Be7 {[%clk 0:02:48.5]} 8. O-O {[%clk 0:02:38.4]}
8... O-O {[%clk 0:02:48.5]} 9. dxc5 {[%clk 0:02:33.1]} 9... Bxc5 {[%clk
0:02:48.2]} 10. Bg5 {[%clk 0:02:33]} 10... Be6 {[%clk 0:02:44.2]} 11. Rc1 {[%clk
0:02:15.4]} 11... Bb6 {[%clk 0:02:31.6]} 12. Nb5 {[%clk 0:01:34.6]} 12... h6
{[%clk 0:02:24.8]} 13. Bf4 {[%clk 0:01:24.7]} 13... Ne4 {[%clk 0:02:03.9]} 14.
Nbd4 {[%clk 0:01:05.8]} 14... Rc8 {[%clk 0:01:32]} 15. Nxc6 {[%clk 0:00:38.8]}
15... bxc6 {[%clk 0:01:25.2]} 16. Nd4 {[%clk 0:00:38.5]} 16... c5 {[%clk
0:01:21.7]} 17. Nxe6 {[%clk 0:00:29.3]} 17... fxe6 {[%clk 0:01:22.6]} 18. Bxe4
{[%clk 0:00:23.6]} 18... dxe4 {[%clk 0:01:22.3]} 19. Qc2 {[%clk 0:00:17.6]}
19... Qd5 {[%clk 0:01:02.4]} 20. Rfd1 {[%clk 0:00:17.1]} 20... Qc6 {[%clk
0:01:00.7]} 21. Rd6 {[%clk 0:00:13.4]} 21... Qb7 {[%clk 0:00:56.2]} 22. Rxe6
{[%clk 0:00:12.3]} 22... c4 {[%clk 0:00:49.7]} 23. Qxe4 {[%clk 0:00:09.3]} 23...
Qf7 {[%clk 0:00:27.9]} 24. Re7 {[%clk 0:00:06]} 24... Rfe8 {[%clk 0:00:16]} 25.
Rxe8+ {[%clk 0:00:05.2]} 25... Rxe8 {[%clk 0:00:16.2]} 26. Qf3 {[%clk
0:00:04.9]} 26... Bd4 {[%clk 0:00:08.1]} 27. Rb1 {[%clk 0:00:03.4]} 27... Qg6
{[%clk 0:00:07]} 28. e4 {[%clk 0:00:03.6]} 28... Qxe4 {[%clk 0:00:06.3]} 29.
Qxe4 {[%clk 0:00:03.6]} 29... Rxe4 {[%clk 0:00:07.2]} 30. Kf1 {[%clk 0:00:04]}
30... a5 {[%clk 0:00:06.4]} 31. Bd2 {[%clk 0:00:04.2]} 31... Re5 {[%clk
0:00:05.1]} 32. Bc3 {[%clk 0:00:03.5]} 32... Bxc3 {[%clk 0:00:05.2]} 33. bxc3
{[%clk 0:00:04.4]} 33... Rd5 {[%clk 0:00:05.8]} 34. Ke2 {[%clk 0:00:03.6]} 34...
Rd3 {[%clk 0:00:05.9]} 35. Rc1 {[%clk 0:00:03.3]} 35... Kf7 {[%clk 0:00:06.5]}
36. Rc2 {[%clk 0:00:03.9]} 36... Ke6 {[%clk 0:00:06.9]} 37. f3 {[%clk
0:00:03.8]} 37... Kd5 {[%clk 0:00:06.3]} 38. Rd2 {[%clk 0:00:04.3]} 38... Rxd2+
{[%clk 0:00:05.8]} 39. Kxd2 {[%clk 0:00:05.2]} 39... a4 {[%clk 0:00:06.3]} 40.
a3 {[%clk 0:00:05.4]} 40... g5 {[%clk 0:00:06.1]} 41. Ke3 {[%clk 0:00:06.3]}
41... Ke5 {[%clk 0:00:06.8]} 42. f4+ {[%clk 0:00:06.9]} 42... gxf4+ {[%clk
0:00:07.1]} 43. gxf4+ {[%clk 0:00:07.8]} 43... Kf5 {[%clk 0:00:07.7]} 44. Kf3
{[%clk 0:00:08.4]} 44... h5 {[%clk 0:00:07.7]} 45. h4 {[%clk 0:00:08.4]} 45...
Kf6 {[%clk 0:00:08.2]} 46. Ke4 {[%clk 0:00:08.9]} 46... Ke6 {[%clk 0:00:08.7]}
47. f5+ {[%clk 0:00:09.5]} 47... Kf6 {[%clk 0:00:09.1]} 48. Kf4 {[%clk
0:00:10.1]} 48... Kf7 {[%clk 0:00:09.4]} 49. Kg5 {[%clk 0:00:10.7]} 49... Kg7
{[%clk 0:00:09.9]} 50. Kxh5 {[%clk 0:00:11.3]} 50... Kf6 {[%clk 0:00:10]} 51.
Kg4 {[%clk 0:00:11.6]} 51... Kg7 {[%clk 0:00:10.4]} 52. Kg5 {[%clk 0:00:11.8]}
52... Kf7 {[%clk 0:00:10.6]} 53. h5 {[%clk 0:00:12.7]} 53... Kg7 {[%clk
0:00:10.1]} 54. h6+ {[%clk 0:00:13.6]} 54... Kh7 {[%clk 0:00:10.4]} 55. Kf6
{[%clk 0:00:13.9]} 55... Kg8 {[%clk 0:00:09.5]} 56. Ke7 {[%clk 0:00:13.6]} 56...
Kh7 {[%clk 0:00:09.6]} 57. f6 {[%clk 0:00:14.3]} 57... Kh8 {[%clk 0:00:10]} 58.
f7 {[%clk 0:00:14.7]} 58... Kh7 {[%clk 0:00:10.7]} 59. f8=Q {[%clk 0:00:15.1]}
59... Kg6 {[%clk 0:00:11.4]} 60. Qg7+ {[%clk 0:00:15]} 60... Kf5 {[%clk
0:00:11.6]} 61. h7 {[%clk 0:00:14.7]} 61... Ke4 {[%clk 0:00:12]} 62. Qd4+ {[%clk
0:00:15.1]} 62... Kf3 {[%clk 0:00:12.1]} 63. h8=Q {[%clk 0:00:15.5]} 63... Kg3
{[%clk 0:00:12.6]} 64. Qhg7+ {[%clk 0:00:15.5]} 64... Kf3 {[%clk 0:00:12.6]} 65.
Qgg4# {[%clk 0:00:16.1]} 1-0

[Event "Early-Titled-Tuesday-Blitz-September-26-2023"]
[Site "Chess.com"]
[Date "2023.09.26"]
[Round "1"]
[White "Rosh1610"]
[Black "bascheyaro"]
[Result "0-1"]
[WhiteElo "2475"]
[BlackElo "2810"]
[TimeControl "180+1"]
[EndTime "8:08:35 PDT"]
[Termination "bascheyaro won by checkmate"]

1. e4 {[%clk 0:03:00.9]} 1... e6 {[%clk 0:02:59.4]} 2. d4 {[%clk 0:03:00.4]}
2... d5 {[%clk 0:02:54.2]} 3. Nc3 {[%clk 0:03:00.2]} 3... Bb4 {[%clk 0:02:53.7]}
4. exd5 {[%clk 0:02:59.5]} 4... exd5 {[%clk 0:02:53.8]} 5. Bd3 {[%clk 0:02:59]}
5... Nf6 {[%clk 0:02:53.8]} 6. Ne2 {[%clk 0:02:58.8]} 6... c5 {[%clk 0:02:53.9]}
7. dxc5 {[%clk 0:02:58.2]} 7... O-O {[%clk 0:02:53.2]} 8. O-O {[%clk 0:02:57.4]}
8... Bxc5 {[%clk 0:02:52.7]} 9. Bg5 {[%clk 0:02:56.7]} 9... Be7 {[%clk
0:02:50.9]} 10. Nf4 {[%clk 0:02:42.2]} 10... d4 {[%clk 0:02:49.3]} 11. Bxf6
{[%clk 0:02:35.4]} 11... Bxf6 {[%clk 0:02:49]} 12. Ncd5 {[%clk 0:02:22.9]} 12...
Bg5 {[%clk 0:02:48.9]} 13. Qf3 {[%clk 0:01:49.6]} 13... Nc6 {[%clk 0:02:43.4]}
14. Rfe1 {[%clk 0:01:48]} 14... g6 {[%clk 0:02:43]} 15. Rad1 {[%clk 0:01:43.7]}
15... Qd6 {[%clk 0:02:32.2]} 16. Ne2 {[%clk 0:01:25.6]} 16... Rd8 {[%clk
0:02:16.4]} 17. Ndf4 {[%clk 0:01:21.7]} 17... Ne5 {[%clk 0:02:12.4]} 18. Qg3
{[%clk 0:01:18.5]} 18... Nxd3 {[%clk 0:02:08.9]} 19. Rxd3 {[%clk 0:01:04.9]}
19... Bf6 {[%clk 0:02:06.9]} 20. Nxd4 {[%clk 0:00:46.7]} 20... Bxd4 {[%clk
0:01:51.5]} 21. c3 {[%clk 0:00:46.7]} 21... Bxf2+ {[%clk 0:01:34.1]} 22. Qxf2
{[%clk 0:00:46.4]} 22... Qf8 {[%clk 0:01:34.3]} 23. Rxd8 {[%clk 0:00:40.3]}
23... Qxd8 {[%clk 0:01:35.2]} 24. Qd4 {[%clk 0:00:24.4]} 24... Qxd4+ {[%clk
0:01:25.5]} 25. cxd4 {[%clk 0:00:25.3]} 25... Kf8 {[%clk 0:01:23.5]} 26. Nd5
{[%clk 0:00:19.6]} 26... Be6 {[%clk 0:01:05.1]} 27. Nc7 {[%clk 0:00:18.7]} 27...
Rc8 {[%clk 0:01:05.5]} 28. Nxe6+ {[%clk 0:00:17.9]} 28... fxe6 {[%clk
0:01:06.4]} 29. Rxe6 {[%clk 0:00:17.9]} 29... Rc2 {[%clk 0:01:07.1]} 30. Rf6+
{[%clk 0:00:16.2]} 30... Ke7 {[%clk 0:01:06]} 31. Rf2 {[%clk 0:00:16.5]} 31...
Rc1+ {[%clk 0:01:05.8]} 32. Rf1 {[%clk 0:00:16.6]} 32... Rc2 {[%clk 0:01:06.4]}
33. Rf2 {[%clk 0:00:17]} 33... Rc1+ {[%clk 0:01:02.3]} 34. Rf1 {[%clk
0:00:16.9]} 34... Rc4 {[%clk 0:01:02.4]} 35. Rf4 {[%clk 0:00:11]} 35... Ke6
{[%clk 0:00:59.9]} 36. Kf2 {[%clk 0:00:10.4]} 36... Rc2+ {[%clk 0:00:59.6]} 37.
Kf3 {[%clk 0:00:07.6]} 37... Rxb2 {[%clk 0:01:00.5]} 38. Re4+ {[%clk 0:00:06]}
38... Kd6 {[%clk 0:00:59.3]} 39. a4 {[%clk 0:00:03]} 39... Rb3+ {[%clk
0:00:51.3]} 40. Kf4 {[%clk 0:00:02.9]} 40... Rb4 {[%clk 0:00:49.8]} 41. Kf3
{[%clk 0:00:02.2]} 41... Rxa4 {[%clk 0:00:49.4]} 42. Rh4 {[%clk 0:00:02.4]}
42... h5 {[%clk 0:00:46.3]} 43. Re4 {[%clk 0:00:02.1]} 43... g5 {[%clk
0:00:40.1]} 44. Re5 {[%clk 0:00:02]} 44... Rxd4 {[%clk 0:00:39.3]} 45. Rxg5
{[%clk 0:00:02.1]} 45... Rd5 {[%clk 0:00:36.9]} 46. Rg6+ {[%clk 0:00:01.8]}
46... Kc5 {[%clk 0:00:37.2]} 47. g4 {[%clk 0:00:01.8]} 47... Rd3+ {[%clk
0:00:33.6]} 48. Ke4 {[%clk 0:00:01.8]} 48... Rd4+ {[%clk 0:00:33.8]} 49. Ke3
{[%clk 0:00:01.8]} 49... Rxg4 {[%clk 0:00:30.7]} 50. Rh6 {[%clk 0:00:02.1]}
50... Rh4 {[%clk 0:00:30.3]} 51. Rh7 {[%clk 0:00:02.6]} 51... Kb6 {[%clk
0:00:29.3]} 52. Rh6+ {[%clk 0:00:02.8]} 52... Ka5 {[%clk 0:00:29.7]} 53. Rh7
{[%clk 0:00:03.5]} 53... Ka6 {[%clk 0:00:30.3]} 54. Rh6+ {[%clk 0:00:04.1]}
54... b6 {[%clk 0:00:30.9]} 55. Kd3 {[%clk 0:00:03.3]} 55... Rxh2 {[%clk
0:00:31.3]} 56. Kc3 {[%clk 0:00:04.2]} 56... Rh4 {[%clk 0:00:31.4]} 57. Kb3
{[%clk 0:00:05.1]} 57... Kb5 {[%clk 0:00:31.6]} 58. Rh7 {[%clk 0:00:05.4]} 58...
Rh3+ {[%clk 0:00:32.1]} 59. Kb2 {[%clk 0:00:05]} 59... a5 {[%clk 0:00:33]} 60.
Rh6 {[%clk 0:00:05.7]} 60... a4 {[%clk 0:00:33.2]} 61. Kb1 {[%clk 0:00:05.9]}
61... Ka5 {[%clk 0:00:33.2]} 62. Rh7 {[%clk 0:00:06.8]} 62... b5 {[%clk
0:00:33.6]} 63. Rh6 {[%clk 0:00:07.7]} 63... b4 {[%clk 0:00:33.2]} 64. Rh7
{[%clk 0:00:07.1]} 64... b3 {[%clk 0:00:33.4]} 65. Rh8 {[%clk 0:00:07.7]} 65...
Kb4 {[%clk 0:00:33.5]} 66. Rb8+ {[%clk 0:00:07.6]} 66... Ka3 {[%clk 0:00:33.8]}
67. Kc1 {[%clk 0:00:02.9]} 67... b2+ {[%clk 0:00:33.9]} 68. Kd2 {[%clk
0:00:03.8]} 68... Rb3 {[%clk 0:00:33.5]} 69. Kc2 {[%clk 0:00:03.2]} 69... b1=Q+
{[%clk 0:00:33.2]} 70. Kd2 {[%clk 0:00:03.7]} 70... Qa2+ {[%clk 0:00:33.7]} 71.
Kd1 {[%clk 0:00:02.2]} 71... Rxb8 {[%clk 0:00:34.6]} 72. Ke1 {[%clk 0:00:01.9]}
72... Rb1# {[%clk 0:00:35.5]} 0-1